bitfinex-derivatives/quotes_ETHF0:USTF0_20250904
["timestamp","ask_amount","ask_price","bid_price","bid_amount"]
[1756983711959,0.40802,4410.3,4410.1,34.5148]
[1756983712166,0.86752,4410.3,4410.2,6.04907136]
[1756983712471,0.86752,4410.3,4410.2,7.99177447]
[1756983712660,0.1663,4411.5,4410.2,6.04907136]
[1756983712866,0.4595,4410.9,4410.2,0.247]
[1756983713066,0.86746,4410.9,4410.8,1.94270311]
[1756983713372,0.40796,4410.9,4410.8,2.18970311]
[1756983713566,0.40796,4410.9,4410.8,0.247]
[1756983713967,1.01976,4411.6,4410.8,0.247]
[1756983713968,1.18585,4412.5,4410.8,4.0]
[1756983714170,0.40791,4411.4,4411.3,5.80207136]
[1756983714363,0.86741,4411.4,4411.3,0.248]
[1756983714671,0.86741,4411.4,4411.3,6.05007136]
[1756983714871,4.22738,4412.4,4411.4,0.4511]
[1756983715065,4.22738,4412.4,4411.6,2.39380311]
[1756983715066,0.40789,4411.7,4411.6,2.39380311]
[1756983715267,0.40789,4411.7,4411.6,8.44387447]
[1756983715464,0.40789,4411.7,4411.6,6.50117136]
[1756983715867,1.01954,4412.6,4411.6,6.50117136]
[1756983716068,1.01954,4412.6,4412.4,5.80207136]
[1756983716266,0.57411,4412.5,4412.4,6.05007136]
[1756983716459,0.40781,4412.5,4412.4,6.05007136]
[1756983716662,0.40781,4412.5,4412.4,7.99277447]
[1756983716863,0.40781,4412.5,4412.4,8.44387447]
[1756983717164,0.86731,4412.6,4412.4,7.99277447]
[1756983717367,0.86731,4412.6,4412.5,1.94270311]
[1756983717768,0.86732,4412.4,4412.3,5.80207136]
[1756983717968,1.03366,4412.0,4411.9,3.2078]
[1756983718265,1.03366,4412.0,4411.9,0.248]
[1756983718671,0.40788,4411.8,4411.7,31.3]
[1756983718972,0.86738,4411.8,4411.7,31.548]
[1756983719675,0.40787,4411.9,4411.8,0.4511]
[1756983719865,0.40787,4411.9,4411.8,6.50117136]
[1756983720261,0.40787,4411.9,4411.8,9.70897136]
[1756983720462,0.40785,4412.1,4411.8,9.25787136]
[1756983720665,0.4078,4412.7,4412.1,0.4511]
[1756983720962,0.40777,4413.0,4412.7,0.4511]
[1756983721270,0.40777,4413.0,4412.9,0.4511]
[1756983721463,0.86732,4412.5,4412.3,3.2078]
[1756983721663,0.1663,4413.0,4412.4,0.6991]
[1756983721873,12.39551,4414.5,4412.9,5.80207136]
[1756983721874,0.40776,4413.1,4412.9,5.80207136]
[1756983722067,0.40776,4413.1,4413.0,0.248]
[1756983722662,0.40774,4413.3,4413.0,0.6991]
[1756983722879,0.40773,4413.4,4413.3,0.4511]
[1756983723071,0.40773,4413.4,4413.3,6.50117136]
[1756983723764,4.3933,4414.0,4413.3,37.33707136]
[1756983723765,3.3741,4414.0,4413.3,37.33707136]
[1756983723972,4.24127,4414.0,4413.9,5.80207136]
[1756983724174,0.40772,4413.5,4413.4,7.74477447]
[1756983724469,1.03352,4413.5,4413.3,31.287]
[1756983724668,0.57402,4413.5,4413.4,0.247]
[1756983725172,4.227,4414.0,4413.4,0.247]
[1756983725378,0.40767,4414.1,4413.9,3.2078]
[1756983725672,0.40767,4414.1,4414.0,0.248]
[1756983727276,0.86717,4414.1,4414.0,0.248]
[1756983727777,0.40767,4414.1,4414.0,0.6991]
[1756983728077,0.40767,4414.1,4414.0,2.82020311]
[1756983729381,0.40761,4414.7,4414.6,0.4511]
[1756983729582,0.40761,4414.7,4414.6,3.6589]
[1756983729780,0.40761,4414.7,4414.6,3.9059]
[1756983730790,0.40761,4414.7,4414.6,3.6589]
[1756983730984,0.40761,4414.7,4414.6,3.4548]
[1756983731187,0.40761,4414.7,4414.6,3.9059]
[1756983731586,0.86711,4414.7,4414.6,3.4548]
[1756983732590,0.40761,4414.7,4414.6,3.8912]
[1756983733381,0.40761,4414.7,4414.1,3.2078]
[1756983733382,0.40765,4414.3,4414.1,3.2078]
[1756983733584,0.86785,4414.3,4414.2,0.247]
[1756983733883,0.86785,4414.3,4414.1,3.2078]
[1756983733884,0.4602,4414.2,4414.1,3.2078]
[1756983734188,0.4602,4414.2,4414.1,3.4548]
[1756983734685,0.4602,4414.2,4414.1,0.247]
[1756983736584,0.4077,4413.7,4413.6,3.2078]
[1756983736790,0.4077,4413.7,4413.6,3.8902]
[1756983736987,4.22706,4413.7,4412.9,0.4364]
[1756983737185,4.22706,4413.7,4412.6,3.2078]
[1756983737186,0.40779,4412.7,4412.6,3.2078]
[1756983737384,0.40779,4412.7,4412.6,3.8902]
[1756983741191,0.40779,4412.7,4412.6,0.6824]
[1756983741391,0.40779,4412.7,4412.6,0.4364]
[1756983741594,0.40779,4412.7,4412.6,0.6824]
[1756983742495,1.01933,4413.4,4413.0,0.1887]
[1756983742688,0.86795,4413.2,4413.1,0.246]
[1756983742890,0.86797,4413.0,4412.9,8.18117447]
[1756983743089,0.86797,4413.0,4412.9,0.246]
[1756983743295,0.86799,4412.7,4412.6,3.6442]
[1756983743497,0.86799,4412.7,4412.6,3.8902]
[1756983745494,0.40779,4412.7,4412.6,3.8902]
[1756983745792,0.40779,4412.7,4412.6,9.69227136]
[1756983746392,0.86799,4412.7,4412.6,3.8892]
[1756983746795,0.86799,4412.7,4412.6,3.2078]
[1756983747095,0.86799,4412.7,4412.6,3.4528]
[1756983747288,1.01952,4412.6,4412.0,3.3965]
[1756983747489,0.86801,4412.5,4412.4,1.94270311]
[1756983747694,0.40781,4412.5,4412.4,2.62410311]
[1756983747895,0.40781,4412.5,4412.4,0.6814]
[1756983748694,0.86801,4412.5,4412.4,0.6814]
[1756983748894,0.86805,4412.1,4412.0,3.2078]
[1756983749099,1.47993,4411.7,4411.3,3.2078]
[1756983749300,0.4079,4411.6,4411.4,0.245]
[1756983749897,0.4079,4411.6,4411.5,1.94270311]
[1756983750796,0.8681,4411.6,4411.5,1.94270311]
[1756983752602,0.4079,4411.6,4411.5,2.37910311]
[1756983754099,1.01961,4412.2,4411.6,0.4364]
[1756983754296,1.01954,4412.5,4412.1,0.4364]
[1756983754502,0.40785,4412.1,4412.0,6.23847136]
[1756983754688,0.40785,4412.1,4412.0,6.48247136]
[1756983754892,0.40785,4412.1,4412.0,8.42517447]
[1756983755298,0.40785,4412.1,4412.0,11.29087447]
[1756983755894,1.01954,4412.5,4412.0,11.29087447]
[1756983755895,0.40784,4412.2,4412.1,0.4364]
[1756983756103,3.2078,4412.7,4412.1,0.4364]
[1756983756398,0.4078,4412.6,4412.5,5.80207136]
[1756983756599,0.4078,4412.6,4412.5,6.48247136]
[1756983756993,0.4078,4412.6,4412.5,8.42517447]
[1756983758804,0.4602,4413.1,4412.5,8.63987447]
[1756983758997,3.61554,4413.3,4413.2,0.5588]
[1756983759195,3.2078,4413.8,4413.2,2.18670311]
[1756983759498,3.2078,4413.8,4413.7,6.23847136]
[1756983759705,3.61549,4413.8,4413.7,6.48247136]
[1756983760001,0.40769,4413.8,4413.7,8.42517447]
[1756983760202,0.4602,4414.3,4413.7,8.42517447]
[1756983760398,0.40766,4414.2,4414.1,1.94270311]
[1756983760602,0.40766,4414.2,4414.1,2.62310311]
[1756983760799,0.86786,4414.2,4414.1,0.6804]
[1756983761101,0.86786,4414.2,4414.1,0.244]
[1756983761304,1.05392,4413.5,4413.4,3.2078]
[1756983761504,0.40777,4413.0,4412.9,3.2078]
[1756983761708,1.05397,4413.0,4412.9,2.18670311]
[1756983762302,1.05397,4413.0,4412.9,7.98877447]
[1756983762496,0.40777,4413.0,4412.9,7.98877447]
[1756983762702,0.40777,4413.0,4412.9,11.65037447]
[1756983762896,0.88967,4413.0,4412.9,5.15050311]
[1756983763097,0.6744,4412.5,4412.4,3.2078]
[1756983763304,1.08221,4412.5,4412.4,3.4518]
[1756983763501,0.40781,4412.5,4412.4,5.84830311]
[1756983763702,0.40781,4412.6,4412.5,0.5481]
[1756983763908,0.40781,4412.6,4412.5,6.35017136]
[1756983764103,1.20532,4413.5,4412.5,11.83907447]
[1756983764309,1.01936,4413.3,4412.9,3.2078]
[1756983764603,0.40777,4413.0,4412.9,3.2078]
[1756983764903,0.40781,4412.5,4412.4,0.4538]
[1756983765110,0.40781,4412.5,4412.3,3.2078]
[1756983765410,0.4819,4412.4,4412.3,3.2078]
[1756983765806,0.4819,4412.4,4412.3,3.4518]
[1756983766407,0.4819,4412.4,4412.3,3.2078]
[1756983766610,0.88977,4411.9,4411.8,5.23620919]
[1756983766909,0.40787,4411.9,4411.8,3.9046]
[1756983767105,1.01954,4412.5,4411.9,0.4538]
[1756983767304,0.40781,4412.5,4412.4,7.80827447]
[1756983767605,0.40781,4412.5,4412.4,7.98777447]
[1756983768009,0.40781,4412.5,4412.4,11.19557447]
[1756983768211,0.40781,4412.5,4412.4,11.25907447]
[1756983768409,0.40781,4412.5,4411.8,2.02840919]
[1756983768714,0.88982,4411.4,4411.3,2.81243035]
[1756983769012,0.40792,4411.4,4411.3,0.244]
[1756983769213,0.40792,4411.4,4411.3,0.3075]
[1756983769408,0.40792,4411.4,4411.3,7.01369066]
[1756983770406,0.40791,4411.5,4411.3,6.95019066]
[1756983770714,0.4079,4411.6,4411.4,2.02840919]
[1756983771013,1.01952,4412.6,4411.5,6.95019066]
[1756983771214,0.40781,4412.5,4412.4,3.2078]
[1756983771516,0.40781,4412.5,4412.4,3.4518]
[1756983771716,0.40781,4412.5,4412.4,5.39450311]
[1756983772613,0.40781,4412.5,4412.4,3.4518]
[1756983773013,0.40781,4412.5,4412.4,5.39450311]
[1756983773910,0.40781,4412.5,4412.2,2.02577611]
[1756983773911,0.40783,4412.3,4412.2,2.02577611]
[1756983774117,0.88982,4411.4,4411.3,6.02023035]
[1756983774417,0.88982,4411.4,4411.3,3.4518]
[1756983777712,0.40792,4411.4,4411.3,3.9056]
[1756983778508,2.03881,4413.2,4411.6,0.4538]
[1756983778509,1.01946,4412.9,4411.6,0.4538]
[1756983778714,0.4078,4412.6,4412.5,6.70619066]
[1756983779011,0.4078,4412.6,4412.5,6.95319066]
[1756983779512,0.4078,4412.6,4412.5,8.89589377]
[1756983780611,0.40779,4412.8,4412.5,8.89589377]
[1756983780818,0.4819,4413.6,4412.7,1.94270311]
[1756983781113,0.40771,4413.6,4413.5,1.94270311]
[1756983781418,0.40771,4413.6,4413.5,2.18870311]
[1756983781619,0.88961,4413.6,4413.5,2.18870311]
[1756983782912,0.40775,4413.2,4413.1,34.4848]
[1756983783119,0.88965,4413.2,4413.1,34.7308]
[1756983787625,0.40775,4413.2,4413.1,34.7308]
[1756983788919,0.88965,4413.2,4413.1,34.7308]
[1756983791924,0.40775,4413.2,4413.1,34.7308]
[1756983792128,0.88965,4413.2,4413.1,34.7308]
[1756983794931,0.40775,4413.2,4413.1,34.7428]
[1756983796728,0.85875,4413.2,4413.1,34.4848]
[1756983796931,0.85875,4413.2,4413.1,34.7288]
[1756983798336,0.85875,4413.2,4413.1,34.4848]
[1756983798634,0.85875,4413.2,4413.1,34.7288]
[1756983799333,0.85875,4413.2,4413.1,34.01615]
[1756983799539,0.85875,4413.2,4413.1,31.521]
[1756983800231,0.85875,4413.2,4413.1,0.244]
[1756983801236,1.47615,4413.2,4413.1,0.244]
[1756983801427,1.47615,4413.2,4413.1,0.2605]
[1756983802340,1.47615,4413.2,4413.1,0.244]
[1756983802535,1.47615,4413.2,4413.1,0.2605]
[1756983802738,1.15765,4413.2,4413.1,0.277]
[1756983802939,0.85875,4413.2,4413.1,0.277]
[1756983803740,0.40775,4413.2,4413.1,6.99349066]
[1756983804435,0.85875,4413.2,4413.1,3.4848]
[1756983804642,2.23094,4414.0,4413.1,3.4848]
[1756983804643,0.451,4415.2,4413.1,7.6784]
[1756983804835,0.85861,4414.7,4414.5,9.91399066]
[1756983805142,0.85861,4414.7,4414.6,0.245]
[1756983806331,0.40761,4414.7,4414.6,0.245]
[1756983806541,0.451,4415.1,4414.6,0.245]
[1756983806743,0.40758,4415.0,4414.9,1.94270311]
[1756983807036,0.40758,4415.0,4414.9,2.18770311]
[1756983807434,0.85858,4415.0,4414.9,2.18770311]
[1756983808137,0.1826,4415.5,4414.9,2.18770311]
[1756983808339,0.40756,4415.3,4415.2,6.70619066]
[1756983808640,0.85856,4415.3,4415.2,6.95019066]
[1756983808842,0.85856,4415.3,4415.2,8.89289377]
[1756983809739,0.451,4415.3,4415.2,8.89289377]
[1756983809940,1.04114,4415.5,4415.2,8.89289377]
[1756983810135,1.04114,4415.5,4415.3,1.94270311]
[1756983810335,1.04114,4415.5,4415.4,0.244]
[1756983810534,0.40751,4415.8,4415.4,2.18670311]
[1756983810730,0.40751,4415.8,4415.4,0.244]
[1756983810933,0.40751,4415.8,4415.6,3.2078]
[1756983811144,0.4075,4415.9,4415.7,2.18670311]
[1756983811343,0.8585,4415.9,4415.8,6.70619066]
[1756983811837,0.40749,4416.0,4415.8,6.70619066]
[1756983812042,0.85849,4416.0,4415.9,2.18670311]
[1756983812244,0.40748,4416.2,4415.9,2.18670311]
[1756983812441,0.85848,4416.2,4415.9,0.244]
[1756983812743,0.40746,4416.4,4416.1,1.94270311]
[1756983812942,0.40746,4416.4,4416.3,6.70619066]
[1756983813640,0.85846,4416.4,4416.3,6.70619066]
[1756983814147,0.40746,4416.4,4416.3,6.70619066]
[1756983814441,0.451,4416.8,4416.3,6.70619066]
[1756983814642,0.451,4416.8,4416.7,1.94270311]
[1756983814846,0.451,4416.8,4416.7,2.18670311]
[1756983815149,0.451,4416.8,4416.7,0.244]
[1756983815341,4.22616,4417.7,4416.7,0.244]
[1756983815342,3.2078,4417.7,4416.8,0.451]
[1756983815545,1.01823,4418.2,4417.6,1.94270311]
[1756983815740,0.1826,4418.5,4417.7,0.244]
[1756983815741,0.40731,4417.9,4417.7,0.244]
[1756983815938,0.1826,4418.0,4417.8,0.244]
[1756983816244,0.40731,4417.9,4417.8,0.244]
[1756983816761,4.40731,4417.9,4417.8,0.244]
[1756983816935,1.01832,4417.8,4417.3,3.2078]
[1756983817140,0.58995,4417.5,4417.4,0.244]
[1756983817347,0.40742,4416.7,4416.6,3.2078]
[1756983817545,0.85842,4416.7,4416.6,3.4518]
[1756983817744,0.85842,4416.7,4416.6,3.2078]
[1756983817942,0.85842,4416.7,4416.6,3.4518]
[1756983820642,0.85842,4416.7,4416.6,3.2078]
[1756983820843,0.85842,4416.7,4416.6,3.4518]
[1756983821048,0.40742,4416.7,4416.6,3.4518]
[1756983821253,0.40742,4416.7,4416.6,3.9028]
[1756983821548,0.40736,4417.4,4416.7,0.451]
[1756983821845,0.40733,4417.8,4417.4,0.451]
[1756983822044,0.40733,4417.8,4417.7,6.70619066]
[1756983822249,0.40733,4417.8,4417.7,9.33989377]
[1756983822959,0.4527,4418.1,4417.7,8.89289377]
[1756983823152,0.40731,4418.0,4417.9,2.38970311]
[1756983823352,0.40731,4418.0,4417.9,2.63370311]
[1756983823553,0.40731,4418.0,4417.9,0.691]
[1756983823945,0.86001,4418.0,4417.9,0.244]
[1756983824446,0.40734,4417.6,4417.5,31.251]
[1756983824642,0.86004,4417.6,4417.5,31.251]
[1756983824842,0.86004,4417.6,4417.5,31.494]
[1756983826346,0.40734,4417.6,4417.5,31.494]
[1756983826550,0.40734,4417.6,4417.5,33.88370311]
[1756983827850,0.40734,4417.6,4417.5,33.64070311]
[1756983828049,0.40734,4417.6,4417.5,33.88470311]
[1756983829453,0.40734,4417.6,4417.5,39.66739292]
[1756983829851,0.40734,4417.6,4417.5,39.57369292]
[1756983830051,0.40734,4417.6,4417.5,39.81769292]
[1756983830453,0.40733,4417.7,4417.5,39.37069292]
[1756983830646,0.40733,4417.7,4417.6,5.78268981]
[1756983830953,1.01821,4418.3,4417.6,7.72539292]
[1756983831154,1.01821,4418.3,4417.5,31.6453]
[1756983831155,0.4527,4418.7,4418.2,5.78268981]
[1756983831452,0.85995,4418.6,4418.5,3.2078]
[1756983831650,0.85995,4418.6,4418.5,3.4508]
[1756983831851,0.85995,4418.6,4418.5,0.243]
[1756983832248,0.4073,4418.0,4417.9,3.2078]
[1756983832554,1.0448,4418.0,4417.9,9.23348981]
[1756983833155,0.86,4418.0,4417.9,9.23348981]
[1756983833353,0.86,4418.0,4417.9,9.68048981]
[1756983834855,0.86,4418.0,4417.9,9.23348981]
[1756983835454,1.0448,4418.0,4417.9,9.23348981]
[1756983835957,0.86,4418.0,4417.9,9.23348981]
[1756983836153,0.86,4418.0,4417.9,9.68048981]
[1756983836354,0.86,4418.0,4417.9,10.29868981]
[1756983837353,1.01808,4418.8,4418.0,0.0397]
[1756983837553,0.40729,4418.2,4418.1,0.2817]
[1756983838359,0.4073,4418.1,4417.9,3.2475]
[1756983838553,0.4527,4418.0,4417.9,3.2078]
[1756983838754,0.4527,4418.0,4417.9,9.23348981]
[1756983839060,0.4073,4418.1,4417.9,11.21589292]
[1756983839357,0.4073,4418.1,4418.0,1.94270311]
[1756983840360,1.01818,4418.4,4418.0,1.98240311]
[1756983840559,1.20285,4419.0,4418.4,0.0397]
[1756983840861,0.40725,4418.6,4418.5,3.4905]
[1756983841358,0.40725,4418.6,4418.5,5.43320311]
[1756983841956,0.40725,4418.6,4418.5,11.21589292]
[1756983842354,1.01803,4419.1,4418.5,11.17619292]
[1756983842556,1.01803,4419.1,4418.8,1.98240311]
[1756983842756,1.02992,4418.9,4418.8,2.18570311]
[1756983843060,1.02992,4418.9,4418.8,0.243]
[1756983843655,0.85995,4418.6,4418.5,3.2078]
[1756983843964,0.85995,4418.6,4418.5,9.23348981]
[1756983844450,0.85995,4418.6,4418.5,11.17619292]
[1756983845256,0.85995,4418.6,4418.5,10.93319292]
[1756983845462,0.85995,4418.6,4418.5,11.17519292]
[1756983846360,0.85995,4418.6,4418.5,11.30219292]
[1756983847167,1.50895,4418.6,4418.5,5.27750311]
[1756983847357,1.50895,4418.6,4418.5,3.4498]
[1756983847658,1.50895,4418.6,4417.8,31.243]
[1756983847659,0.4073,4418.1,4418.0,3.2078]
[1756983847966,0.4073,4418.0,4417.9,5.94938981]
[1756983848165,0.4073,4418.0,4417.9,6.19138981]
[1756983848466,0.40726,4418.5,4418.4,5.94938981]
[1756983848663,0.85996,4418.5,4418.4,6.15168981]
[1756983848852,1.04476,4418.5,4418.4,6.15168981]
[1756983849570,1.04476,4418.5,4418.4,8.09439292]
[1756983850564,0.85996,4418.5,4418.4,8.09439292]
[1756983850764,0.40725,4418.6,4418.5,0.0397]
[1756983850967,0.4527,4418.8,4418.7,0.127]
[1756983851171,3.2078,4419.2,4418.7,2.35140311]
[1756983851466,3.2078,4419.2,4418.8,2.10940311]
[1756983851467,0.40722,4418.9,4418.8,2.10940311]
[1756983851867,0.40722,4418.9,4418.8,0.1667]
[1756983852566,0.40722,4418.9,4418.8,0.127]
[1756983852762,1.21942,4418.9,4418.8,6.15168981]
[1756983853463,0.88902,4418.9,4418.8,6.15168981]
[1756983853662,3.2078,4419.2,4418.8,6.15168981]
[1756983853865,0.40721,4419.1,4419.0,2.23980311]
[1756983854063,0.40721,4419.1,4419.0,2.48180311]
[1756983854275,3.615,4419.2,4419.1,0.0707]
[1756983854565,0.4072,4419.2,4419.1,0.2971]
[1756983854962,0.889,4419.2,4419.1,0.2971]
[1756983855764,4.41043,4420.0,4419.7,0.2206]
[1756983855765,0.88894,4419.8,4419.7,0.2206]
[1756983855973,0.28108852,4419.8,4419.7,5.84160311]
[1756983856363,0.40713,4420.0,4419.9,0.6213]
[1756983856559,0.40713,4420.0,4419.9,1.3168]
[1756983857264,0.40713,4420.0,4419.9,7.09948981]
[1756983858362,0.88893,4420.0,4419.9,7.09948981]
[1756983858569,1.01764,4420.8,4419.9,8.58769292]
[1756983858768,0.4818,4420.5,4420.4,6.85848981]
[1756983859073,1.21927,4420.5,4420.4,7.09948981]
[1756983859272,0.40707,4420.6,4420.4,7.09948981]
[1756983859472,1.3306,4420.5,4420.4,6.40398981]
[1756983859673,1.1413,4420.3,4420.2,8.99048981]
[1756983859875,1.1413,4420.3,4420.2,9.23148981]
[1756983860267,1.1413,4420.3,4420.2,8.99048981]
[1756983860466,1.1413,4420.3,4419.2,5.78268981]
[1756983860467,0.40719,4419.3,4419.2,5.78268981]
[1756983860771,1.21939,4419.3,4419.2,6.64498981]
[1756983860966,0.8122,4419.9,4419.8,0.311]
[1756983861162,1.21933,4419.9,4419.8,7.09948981]
[1756983861368,1.21933,4419.9,4419.8,6.64498981]
[1756983861562,1.54843,4419.9,4419.8,6.64498981]
[1756983862165,1.54843,4419.9,4419.8,6.33468981]
[1756983863573,0.40719,4419.2,4419.1,34.4358]
[1756983863876,0.88899,4419.2,4419.1,40.45948981]
[1756983864579,0.88899,4419.2,4419.1,40.91398981]
[1756983864966,0.88899,4419.2,4419.1,40.45948981]
[1756983865168,0.88899,4419.2,4419.1,40.21848981]
[1756983865774,0.88899,4419.2,4419.1,40.45948981]
[1756983865974,1.1413,4419.8,4419.7,0.311]
[1756983866178,1.1413,4419.8,4419.7,6.33468981]
[1756983867373,1.1413,4419.8,4419.7,6.64498981]
[1756983867777,1.54844,4419.8,4419.7,6.64498981]
[1756983869981,1.54844,4419.8,4419.7,6.33468981]
[1756983870278,0.88899,4419.2,4419.1,34.4358]
[1756983870472,0.88899,4419.2,4419.1,34.6758]
[1756983870670,0.88899,4419.2,4419.1,34.4358]
[1756983870874,0.88899,4419.2,4419.1,34.6758]
[1756983871565,0.88899,4419.2,4419.1,31.468]
[1756983872073,0.88899,4419.2,4418.6,3.2078]
[1756983872074,0.6595,4418.7,4418.6,3.2078]
[1756983872274,1.54854,4418.7,4418.6,3.4478]
[1756983873371,1.54854,4418.7,4418.6,3.2078]
[1756983873574,1.54854,4418.7,4418.6,3.4478]
[1756983874581,1.54854,4418.7,4418.6,3.2078]
[1756983874775,1.54854,4418.7,4418.6,3.4478]
[1756983875872,1.54854,4418.7,4418.6,3.2078]
[1756983876077,1.54854,4418.7,4418.6,3.4478]
[1756983876476,5.54854,4418.7,4418.6,3.4478]
[1756983876679,0.8122,4418.7,4418.6,4.5236]
[1756983877080,0.4073,4418.1,4418.0,34.4338]
[1756983877280,0.8891,4418.1,4418.0,31.466]
[1756983877881,0.4073,4418.1,4418.0,37.07100311]
[1756983879882,0.4073,4418.1,4418.0,37.17500311]
[1756983881478,0.8891,4418.1,4418.0,37.07100311]
[1756983881886,0.8891,4418.1,4418.0,35.1283]
[1756983882280,0.8891,4418.1,4418.0,31.226]
[1756983882581,0.8891,4418.1,4418.0,31.466]
[1756983883688,0.8891,4418.1,4418.0,31.9658]
[1756983883988,0.8891,4418.1,4418.0,31.466]
[1756983884183,0.8891,4418.1,4418.0,30.72725]
[1756983884391,1.25039,4417.1,4417.0,6.37869699]
[1756983884596,1.25039,4417.1,4417.0,4.3562]
[1756983884792,1.25039,4417.1,4417.0,6.29890311]
[1756983885097,1.25039,4417.1,4417.0,6.53890311]
[1756983887795,0.91469,4417.1,4417.0,6.53890311]
[1756983888003,0.40739,4417.1,4417.0,6.53890311]
[1756983889001,1.25039,4417.1,4417.0,6.29890311]
[1756983889204,1.25039,4417.1,4417.0,6.53890311]
[1756983892506,0.91469,4417.1,4417.0,6.53890311]
[1756983892699,0.91469,4417.1,4417.0,4.5962]
[1756983893207,0.91469,4417.1,4417.0,6.53890311]
[1756983893797,0.40739,4417.1,4417.0,6.53890311]
[1756983893999,0.40739,4417.1,4417.0,6.72700311]
[1756983894601,0.40739,4417.1,4417.0,6.48700311]
[1756983894899,1.25039,4417.1,4417.0,6.53890311]
[1756983895696,0.40739,4417.1,4417.0,6.53890311]
[1756983898301,1.25039,4417.1,4417.0,6.53890311]
[1756983898697,1.58679,4417.1,4417.0,3.8564]
[1756983898911,1.58679,4417.1,4417.0,4.0964]
[1756983900306,0.40739,4417.1,4417.0,6.72640311]
[1756983900504,3.61512,4417.8,4417.7,1.1484]
[1756983900703,3.61512,4417.8,4417.7,1.3884]
[1756983900904,0.40732,4417.8,4417.7,1.3884]
[1756983902302,0.40732,4417.8,4417.7,3.33110311]
[1756983907600,0.40732,4417.8,4417.7,3.09110311]
[1756983907803,1.58672,4417.8,4417.6,3.2078]
[1756983908108,1.58677,4417.3,4417.2,0.3307]
[1756983908304,1.58677,4417.3,4417.2,0.5707]
[1756983910013,0.40742,4416.8,4416.7,31.7328]
[1756983910315,0.91472,4416.8,4416.7,31.9728]
[1756983910516,0.91472,4416.8,4416.7,33.91550311]
[1756983910712,0.40742,4416.8,4416.7,33.67550311]
[1756983910917,0.40742,4416.8,4416.7,33.91550311]
[1756983911415,0.40742,4416.8,4416.7,35.9380001]
[1756983912016,0.91472,4416.8,4416.7,35.9380001]
[1756983912317,0.91472,4416.8,4416.7,33.41570311]
[1756983912512,0.91472,4416.8,4416.7,35.4382001]
[1756983912704,0.91472,4416.8,4416.7,33.88810311]
[1756983913813,0.91472,4416.8,4416.7,35.9106001]
[1756983919517,0.91472,4416.8,4416.7,33.41570311]
[1756983919821,4.91472,4416.8,4416.7,30.95589]
[1756983920324,4.91472,4416.8,4416.7,30.46644]
[1756983921720,1.04438,4416.1,4416.0,2.35529699]
[1756983922017,1.01865,4416.4,4415.8,3.2078]
[1756983922018,1.0444,4415.9,4415.8,3.2078]
[1756983922220,1.0444,4415.9,4415.8,3.7806]
[1756983922221,1.4984,4415.9,4415.8,3.7806]
[1756983922724,1.4984,4415.9,4415.8,4.088]
[1756983922922,1.4984,4415.9,4415.8,4.5604]
[1756983924922,1.4984,4415.9,4415.8,3.5406]
[1756983925224,1.4984,4415.9,4415.8,3.7806]
[1756983925531,0.86154,4415.4,4415.3,34.4508]
[1756983925724,0.86154,4415.4,4415.3,34.6908]
[1756983925922,0.86154,4415.4,4415.3,35.1632]
[1756983926725,0.86154,4415.4,4415.3,34.4508]
[1756983927120,0.86154,4415.4,4415.3,34.6908]
[1756983927821,0.86154,4415.4,4415.3,31.483]
[1756983928016,0.86154,4415.4,4414.9,0.4724]
[1756983928017,0.454,4415.4,4414.8,3.2078]
[1756983928219,1.49849,4414.9,4414.8,3.848]
[1756983928414,1.49849,4414.9,4414.8,4.088]
[1756983928814,1.49849,4414.9,4414.8,3.848]
[1756983929026,1.49849,4414.9,4414.8,0.8802]
[1756983930720,1.49852,4414.6,4414.5,0.3328]
[1756983930920,1.49852,4414.6,4414.5,0.5728]
[1756983931322,1.49852,4414.6,4414.5,0.24]
[1756983931521,1.49855,4414.2,4414.1,3.848]
[1756983931728,1.49855,4414.2,4414.1,4.088]
[1756983932632,1.49855,4414.2,4414.1,3.848]
[1756983932828,1.49855,4414.2,4414.1,0.5728]
[1756983933820,0.40765,4414.2,4414.1,3.31857634]
[1756983934224,0.40764,4414.4,4414.3,0.6402]
[1756983934429,0.40764,4414.4,4414.3,3.31857634]
[1756983934821,0.40761,4414.7,4414.6,0.3074]
[1756983935026,0.40761,4414.7,4414.6,5.26127945]
[1756983935328,0.40761,4414.7,4414.6,3.31857634]
[1756983935529,0.40761,4414.7,4414.6,1.3526]
[1756983936521,0.40759,4414.9,4414.7,0.4724]
[1756983936726,0.40759,4414.9,4414.8,1.3526]
[1756983936931,0.40759,4414.9,4414.8,3.29530311]
[1756983937136,0.40759,4414.9,4414.8,1.3526]
[1756983938433,0.40758,4415.0,4414.9,0.4724]
[1756983938632,0.40758,4415.0,4414.9,1.1126]
[1756983938830,0.40758,4415.0,4414.9,3.05530311]
[1756983940731,0.6476,4415.0,4414.5,0.3328]
[1756983941038,0.40766,4414.1,4414.0,31.248]
[1756983941238,0.40766,4414.1,4414.0,31.488]
[1756983941534,0.86166,4414.1,4414.0,33.43070311]
[1756983942125,0.86166,4414.1,4414.0,33.90310311]
[1756983942723,0.86166,4414.1,4414.0,33.66310311]
[1756983942936,0.86166,4414.1,4414.0,33.90310311]
[1756983943135,1.2127,4414.5,4414.0,33.90310311]
[1756983943136,0.40765,4414.3,4414.1,0.4683]
[1756983943334,3.7197,4415.5,4415.4,0.6382]
[1756983943534,4.95564,4415.5,4415.4,0.8782]
[1756983943729,4.95564,4415.5,4415.4,0.5459]
[1756983944334,1.22429,4414.9,4414.8,1.1065]
[1756983944533,1.22429,4414.9,4414.8,1.3465]
[1756983945141,1.22429,4414.9,4414.8,1.1065]